bitfinex/quotes_BTCUSD_20250713
["timestamp","ask_amount","ask_price","bid_price","bid_amount"]
[1752418676767,0.60544379,118600.0,118590.0,0.55738321]
[1752418676978,0.60236379,118600.0,118590.0,0.55738321]
[1752418679434,0.60544379,118600.0,118590.0,0.52678321]
[1752418679856,0.63874379,118600.0,118590.0,0.52678321]
[1752418681746,1.27509767,118600.0,118590.0,0.52678321]
[1752418682812,1.24179767,118600.0,118590.0,0.52678321]
[1752418684779,1.23871767,118600.0,118590.0,0.52678321]
[1752418684987,1.23871767,118600.0,118590.0,0.55778321]
[1752418688070,0.92054073,118600.0,118590.0,0.55778321]
[1752418688668,0.92054073,118600.0,118590.0,0.55993321]
[1752418692782,0.92054073,118600.0,118590.0,0.56303321]
[1752418692997,1.07957795,118600.0,118590.0,0.56303321]
[1752418693471,1.07957795,118600.0,118590.0,0.55993321]
[1752418699241,1.07957795,118600.0,118590.0,0.56303321]
[1752418699847,1.07957795,118600.0,118590.0,0.59313321]
[1752418699848,0.82741795,118600.0,118590.0,0.59313321]
[1752418709758,0.35020379,118600.0,118590.0,0.59313321]
[1752418709971,0.82741795,118600.0,118590.0,0.59313321]
[1752418711774,0.58881087,118600.0,118590.0,0.59313321]
[1752418712437,0.82741795,118600.0,118590.0,0.59313321]
[1752418712862,0.58881087,118600.0,118590.0,0.59313321]
[1752418714595,0.58881087,118600.0,118590.0,0.59213321]
[1752418715262,0.58581087,118600.0,118590.0,0.59213321]
[1752418715475,0.58681087,118600.0,118590.0,0.59313321]
[1752418719439,0.34820379,118600.0,118590.0,0.59313321]
[1752418719658,0.58681087,118600.0,118590.0,0.59313321]
[1752418720555,0.58681087,118600.0,118590.0,0.61849163]
[1752418722639,0.34820379,118600.0,118590.0,0.61849163]
[1752418722865,0.58681087,118600.0,118590.0,0.61849163]
[1752418723088,0.34820379,118600.0,118590.0,0.61849163]
[1752418723307,0.58681087,118600.0,118590.0,0.61849163]
[1752418723761,0.58669649,118600.0,118590.0,0.61849163]
[1752418724402,0.001,118600.0,118590.0,0.61849163]
[1752418724830,0.23960708,118600.0,118590.0,0.61849163]
[1752418725481,0.001,118600.0,118590.0,0.61849163]
[1752418725705,0.25270945,118600.0,118590.0,0.61849163]
[1752418725926,0.23960708,118600.0,118590.0,0.61849163]
[1752418726824,0.23960708,118600.0,118590.0,0.91519163]
[1752418727477,0.001,118600.0,118590.0,0.91519163]
[1752418727741,0.23960708,118600.0,118590.0,0.91519163]
[1752418729248,0.001,118600.0,118590.0,0.91519163]
[1752418730412,0.01323528,118600.0,118590.0,0.91519163]
[1752418730914,0.25184236,118600.0,118590.0,0.91519163]
[1752418735739,0.25399236,118600.0,118590.0,0.91519163]
[1752418735946,0.25399236,118600.0,118590.0,0.88509163]
[1752418736354,0.25184236,118600.0,118590.0,0.91619163]
[1752418738588,0.25184236,118600.0,118590.0,0.61949163]
[1752418739819,0.25184236,118600.0,118590.0,0.6183375]
[1752418745154,0.01323528,118600.0,118590.0,0.6183375]
[1752418745359,0.25184236,118600.0,118590.0,0.6183375]
[1752418750350,0.01323528,118600.0,118590.0,0.6183375]
[1752418750517,0.25184236,118600.0,118590.0,0.6183375]
[1752418752604,0.25184236,118600.0,118590.0,0.5872375]
[1752418754354,0.25399236,118600.0,118590.0,0.5872375]
[1752418756189,0.25184236,118600.0,118590.0,0.5872375]
[1752418756407,0.01323528,118600.0,118590.0,0.5872375]
[1752418756646,0.25184236,118600.0,118590.0,0.5872375]
[1752418757090,0.25184236,118600.0,118590.0,0.6177375]
[1752418757498,0.01323528,118600.0,118590.0,0.6177375]
[1752418757703,0.25184236,118600.0,118590.0,0.6177375]
[1752418758750,0.01323528,118600.0,118590.0,0.6177375]
[1752418758956,0.25184236,118600.0,118590.0,0.6177375]
[1752418759375,0.01323528,118600.0,118590.0,0.6177375]
[1752418759614,0.25184236,118600.0,118590.0,0.6177375]
[1752418760045,0.01323528,118600.0,118590.0,0.6177375]
[1752418761333,0.25184236,118600.0,118590.0,0.6177375]
[1752418762004,0.01323528,118600.0,118590.0,0.6177375]
[1752418762261,0.25184236,118600.0,118590.0,0.6177375]
[1752418765560,0.01323528,118600.0,118590.0,0.6177375]
[1752418765982,0.001,118600.0,118590.0,1.23847451]
[1752418766412,0.1,118630.0,118620.0,0.0327]
[1752418766625,0.33910676,118630.0,118620.0,0.3074]
[1752418766840,0.35106022,118630.0,118620.0,0.31042]
[1752418767045,0.69106022,118630.0,118620.0,0.31042]
[1752418767261,0.35106022,118630.0,118620.0,0.31042]
[1752418767478,0.69106022,118630.0,118620.0,0.31042]
[1752418767707,0.69310022,118630.0,118620.0,0.31042]
[1752418767928,0.69310022,118630.0,118620.0,0.2747]
[1752418768151,0.69719022,118630.0,118620.0,0.27467]
[1752418768424,0.69719022,118630.0,118620.0,0.27567]
[1752418768723,0.73009022,118630.0,118620.0,0.27567]
[1752418771707,0.73009022,118630.0,118620.0,0.26936]
[1752418771708,1.05412723,118630.0,118620.0,0.26936]
[1752418771921,1.08472723,118630.0,118620.0,0.26936]
[1752418773437,1.08472723,118630.0,118620.0,0.47136]
[1752418773663,1.10934401,118630.0,118620.0,0.47136]
[1752418775327,1.08472723,118630.0,118620.0,0.47136]
[1752418775576,1.08472723,118630.0,118620.0,0.518496]
[1752418779437,1.05412723,118630.0,118620.0,0.518496]
[1752418780346,0.81552015,118630.0,118620.0,0.518496]
[1752418780563,0.77953015,118630.0,118620.0,0.551596]
[1752418782918,0.69410022,118630.0,118620.0,0.551596]
[1752418785335,0.69410022,118630.0,118620.0,0.553626]
[1752418786213,0.69410022,118630.0,118620.0,0.586746]
[1752418786214,0.45345314,118630.0,118620.0,0.586746]
[1752418786435,0.69206022,118630.0,118620.0,0.586746]
[1752418786883,0.45345314,118630.0,118620.0,0.586746]
[1752418787120,0.69206022,118630.0,118620.0,0.586746]
[1752418787354,0.11345314,118630.0,118620.0,0.82535308]
[1752418788024,0.11345314,118630.0,118620.0,0.586746]
[1752418789359,0.35206022,118630.0,118620.0,0.586746]
[1752418791065,0.43135518,118630.0,118620.0,0.586746]
[1752418791671,0.11345314,118630.0,118620.0,0.586746]
[1752418791877,0.06345314,118630.0,118620.0,0.586746]
[1752418803743,0.05149968,118630.0,118620.0,0.586746]
[1752418804183,0.05149968,118630.0,118620.0,0.67217593]
[1752418804831,0.06280668,118630.0,118620.0,0.67217593]
[1752418806178,0.38070872,118630.0,118620.0,0.586746]
[1752418807062,0.06280668,118630.0,118620.0,0.586746]
[1752418808148,0.05149968,118630.0,118620.0,0.586746]
[1752418809041,0.05149968,118630.0,118620.0,0.67217593]
[1752418812378,0.05149968,118630.0,118620.0,0.91056105]
[1752418812603,0.05149968,118630.0,118620.0,1.14894617]
[1752418813246,0.05149968,118630.0,118620.0,0.91056105]
[1752418813905,0.04308381,118630.0,118620.0,1.14894617]
[1752418814337,0.03466794,118630.0,118620.0,1.14894617]
[1752418814779,0.02625207,118630.0,118620.0,1.14894617]
[1752418815221,0.0178362,118630.0,118620.0,1.14894617]
[1752418815447,0.00942033,118630.0,118620.0,1.14894617]
[1752418815890,0.00100446,118630.0,118620.0,1.19894617]
[1752418816357,0.0004,118650.0,118640.0,0.0641]
[1752418816558,0.00044995,118650.0,118640.0,0.18189844]
[1752418816785,0.00044995,118650.0,118640.0,0.44977844]
[1752418817008,0.00044995,118650.0,118640.0,0.68816356]
[1752418817847,0.00044995,118650.0,118640.0,0.44977844]
[1752418818304,0.00044995,118650.0,118640.0,0.68816356]
[1752418818738,0.00044995,118650.0,118640.0,0.68916356]
[1752418819194,0.00144995,118650.0,118640.0,0.68916356]
[1752418819668,0.00144995,118650.0,118640.0,0.45077844]
[1752418820076,0.00136781,118650.0,118640.0,0.45077844]
[1752418822201,0.0117573,118660.0,118650.0,0.0636]
[1752418822428,0.0004,118660.0,118650.0,0.18752722]
[1752418822672,0.25878512,118680.0,118650.0,0.63004531]
[1752418822909,0.25878512,118680.0,118660.0,0.15198993]
[1752418823135,0.25878512,118680.0,118670.0,0.26476]
[1752418823378,0.02243,118680.0,118670.0,0.29918]
[1752418823633,0.03193508,118680.0,118670.0,0.30231]
[1752418823870,0.03193508,118680.0,118670.0,0.33361]
[1752418824135,0.0204,118680.0,118670.0,0.65168565]
[1752418824361,0.0204,118680.0,118670.0,0.73711558]
[1752418825091,0.0204,118680.0,118670.0,0.49873046]
[1752418825305,0.0234,118680.0,118670.0,0.81629475]
[1752418825523,0.0204,118680.0,118670.0,0.81629475]
[1752418826003,0.0224,118680.0,118670.0,0.81629475]
[1752418826187,0.01398575,118680.0,118670.0,0.81629475]
[1752418826492,0.01398575,118680.0,118670.0,0.87741125]
[1752418826740,0.0035715,118680.0,118670.0,0.87941125]
[1752418826980,0.34976429,118720.0,118680.0,0.0636]
[1752418827192,0.00014981,118710.0,118700.0,0.0323]
[1752418827465,0.00014981,118710.0,118700.0,0.299]
[1752418827700,0.00014981,118710.0,118700.0,0.30213]
[1752418828655,0.00014981,118710.0,118700.0,0.33393]
[1752418829145,0.00014981,118710.0,118700.0,0.41935993]
[1752418829383,0.01158931,118710.0,118700.0,0.45575019]
[1752418829617,0.01358931,118710.0,118700.0,0.45575019]
[1752418829844,0.00214981,118710.0,118700.0,0.45575019]
[1752418830555,0.01370348,118710.0,118700.0,0.45575019]
[1752418830779,0.00214981,118710.0,118700.0,0.45575019]
[1752418830999,0.00214981,118710.0,118700.0,0.33317026]
[1752418831000,0.3228841,118710.0,118700.0,0.33317026]
[1752418831250,0.03821981,118710.0,118700.0,0.30087026]
[1752418831459,0.03514981,118710.0,118700.0,0.30087026]
[1752418831682,0.3527141,118710.0,118700.0,0.30087026]
[1752418832104,0.3198141,118710.0,118700.0,0.30087026]
[1752418832312,0.3228141,118710.0,118700.0,0.30087026]
[1752418832816,0.33125473,118710.0,118700.0,0.30087026]
[1752418833014,0.33225473,118710.0,118700.0,0.30087026]
[1752418835796,0.36632473,118710.0,118700.0,0.30087026]
[1752418836018,0.39822473,118710.0,118700.0,0.2644]
[1752418836242,0.73822473,118710.0,118700.0,0.2644]
[1752418836703,1.07365466,118710.0,118700.0,0.2644]
[1752418836929,1.08148117,118710.0,118700.0,0.2644]
[1752418837143,1.08148155,118710.0,118700.0,0.2644]
[1752418837361,1.10609833,118710.0,118700.0,0.311028]
[1752418837805,1.10609833,118710.0,118700.0,0.2644]
[1752418837806,1.10509833,118710.0,118700.0,0.2644]
[1752418838032,1.10809833,118710.0,118700.0,0.2644]
[1752418838254,1.10909833,118710.0,118700.0,0.2644]
[1752418839160,1.10809833,118710.0,118700.0,0.2644]
[1752418839377,1.11109833,118710.0,118700.0,0.2644]
[1752418839601,1.10809833,118710.0,118700.0,0.311028]
[1752418839820,1.11209833,118710.0,118700.0,0.311028]
[1752418840511,1.12663918,118710.0,118700.0,0.2644]
[1752418840966,1.45902891,118710.0,118700.0,0.2644]
[1752418841392,1.85902891,118710.0,118700.0,0.2644]
[1752418841845,1.45602891,118710.0,118700.0,0.2644]
[1752418842283,1.13846462,118710.0,118700.0,0.2644]
[1752418842498,1.11384784,118710.0,118700.0,0.2644]
[1752418842979,1.11284784,118710.0,118700.0,0.2654]
[1752418843196,1.0950224,118710.0,118700.0,0.2644]
[1752418843408,1.1000224,118710.0,118700.0,0.2644]
[1752418843623,1.1050224,118710.0,118700.0,0.2654]
[1752418845171,1.09719551,118710.0,118700.0,0.2654]
[1752418845394,1.10504196,118710.0,118700.0,0.312128]
[1752418845608,1.09050111,118710.0,118700.0,0.312128]
[1752418846055,0.77293682,118710.0,118700.0,0.312128]
[1752418846279,1.09050111,118710.0,118700.0,0.312128]
[1752418846751,1.11576211,118710.0,118700.0,0.312128]
[1752418847169,1.08386211,118710.0,118700.0,0.312128]
[1752418847598,0.79979211,118710.0,118700.0,0.312128]
[1752418847874,1.04979211,118710.0,118700.0,0.312128]
[1752418848079,1.08386211,118710.0,118700.0,0.312128]
[1752418849632,1.11406211,118710.0,118700.0,0.312128]
[1752418850083,1.08386211,118710.0,118700.0,0.312128]
[1752418850763,0.80286211,118710.0,118700.0,0.312128]
[1752418850987,0.73222782,118710.0,118700.0,0.346988]
[1752418851210,1.04979211,118710.0,118700.0,0.344928]
[1752418851426,1.04979211,118710.0,118700.0,0.312128]
[1752418851909,1.08386211,118710.0,118700.0,0.312128]
[1752418853447,1.11616211,118710.0,118700.0,0.312128]
[1752418853672,1.11616211,118710.0,118700.0,0.2654]
[1752418853894,1.10831566,118710.0,118700.0,0.2654]
[1752418854116,1.1161736,118710.0,118700.0,0.2654]
[1752418854796,1.11617351,118710.0,118700.0,0.2654]
[1752418855230,1.13071436,118710.0,118700.0,0.312128]
[1752418855482,1.13071436,118710.0,118700.0,0.2644]
[1752418855483,1.12571436,118710.0,118700.0,0.2644]
[1752418855716,1.45470197,118710.0,118700.0,0.2654]
[1752418855935,1.52143543,118710.0,118700.0,0.2654]
[1752418856153,1.72158559,118710.0,118700.0,0.2654]
[1752418856370,1.55310779,118710.0,118700.0,0.2654]
[1752418856589,1.75521624,118710.0,118700.0,0.2654]
[1752418856812,1.7467925,118710.0,118700.0,0.2654]
[1752418857026,1.7437925,118710.0,118700.0,0.2644]
[1752418857253,1.7487925,118710.0,118700.0,0.2654]
[1752418857474,1.57189117,118710.0,118700.0,0.2654]
[1752418857700,1.5803147,118710.0,118700.0,0.2654]
[1752418857924,1.5753147,118710.0,118700.0,0.2654]
[1752418859013,1.57531463,118710.0,118700.0,0.2654]
[1752418859675,1.58673816,118710.0,118700.0,0.2654]
[1752418860110,1.58373816,118710.0,118700.0,0.2654]
[1752418860359,1.55846525,118710.0,118700.0,0.2654]
[1752418860571,1.53784847,118710.0,118700.0,0.2654]
[1752418861663,1.20545874,118710.0,118700.0,0.2654]
[1752418861911,1.18025183,118710.0,118700.0,0.2654]
[1752418862128,0.74287098,118710.0,118700.0,0.312128]
[1752418862348,1.08287228,118710.0,118700.0,0.312128]
[1752418862787,1.08287368,118710.0,118700.0,0.312128]
[1752418863255,1.09741453,118710.0,118700.0,0.312128]
[1752418865051,1.70059074,118710.0,118700.0,0.2654]
[1752418865280,1.1331034,118710.0,118700.0,0.2654]
[1752418865506,1.48350521,118710.0,118700.0,0.2654]
[1752418865749,1.50035213,118710.0,118700.0,0.2654]
[1752418865975,1.52561813,118710.0,118700.0,0.312128]
[1752418866203,1.5171946,118710.0,118700.0,0.312128]
[1752418866697,1.50034796,118710.0,118700.0,0.312128]
[1752418866938,0.8406026,118710.0,118700.0,0.312128]
[1752418867176,1.15816689,118710.0,118700.0,0.312128]
[1752418867875,1.16884431,118710.0,118700.0,0.312128]
[1752418868677,0.85128002,118710.0,118700.0,0.312128]
[1752418868911,1.16884431,118710.0,118700.0,0.312128]
[1752418870200,1.20054431,118710.0,118700.0,0.2654]
[1752418870419,1.19554431,118710.0,118700.0,0.2654]
[1752418870912,1.19555934,118710.0,118700.0,0.2654]
[1752418876361,1.16385934,118710.0,118700.0,0.2654]
[1752418877257,1.13095934,118710.0,118700.0,0.2654]
[1752418877681,1.11641849,118710.0,118700.0,0.312438]
[1752418877893,1.13095934,118710.0,118700.0,0.312438]
[1752418878099,1.1309607,118710.0,118700.0,0.312438]
[1752418879659,1.12308629,118710.0,118700.0,0.312438]
[1752418879873,1.13096131,118710.0,118700.0,0.312438]
[1752418880314,0.81339702,118710.0,118700.0,0.312438]
[1752418880529,1.1309616,118710.0,118700.0,0.312438]
[1752418881009,1.12308629,118710.0,118700.0,0.315538]
[1752418881438,1.12308629,118710.0,118700.0,0.2685]
[1752418881654,1.13096222,118710.0,118700.0,0.2685]
[1752418881866,1.12308629,118710.0,118700.0,0.2685]
[1752418883009,1.12308629,118710.0,118700.0,0.3304]
[1752418883721,1.12308629,118710.0,118700.0,0.33239]
[1752418883942,1.12308629,118710.0,118700.0,0.116417]
[1752418884164,1.12308629,118710.0,118700.0,0.06299]
[1752418884642,1.12506629,118710.0,118700.0,0.06299]
[1752418885113,1.12506629,118710.0,118700.0,0.32663]
[1752418885337,0.79747849,118710.0,118700.0,0.32663]
[1752418885557,0.77221249,118710.0,118700.0,0.32663]
[1752418885772,1.02221249,118710.0,118700.0,0.379481]
[1752418885988,1.02221249,118710.0,118700.0,0.382711]
[1752418886687,0.92224171,118710.0,118700.0,0.382711]
[1752418889576,0.35467742,118710.0,118700.0,0.382711]
[1752418889812,0.67224171,118710.0,118700.0,0.382711]
[1752418890568,0.01467742,118710.0,118700.0,0.382711]
[1752418890830,0.01067742,118710.0,118700.0,0.383711]
[1752418891340,0.002,118710.0,118700.0,0.383711]
[1752418891560,0.002,118710.0,118700.0,0.46914093]
[1752418892430,0.002,118710.0,118700.0,0.76584093]
[1752418894196,0.65796429,118720.0,118710.0,0.0612]
[1752418894427,0.3404,118720.0,118710.0,0.14511006]
[1752418894632,0.35091942,118720.0,118710.0,0.14511006]
[1752418894842,0.66848371,118720.0,118710.0,0.14511006]
[1752418895052,0.66848371,118720.0,118710.0,0.14300409]
[1752418895262,0.986048,118720.0,118710.0,0.14300409]
[1752418895709,0.986048,118720.0,118710.0,0.0665]
[1752418896142,0.986048,118720.0,118710.0,0.32994]
[1752418896363,0.986048,118720.0,118710.0,0.33094]
[1752418896622,1.238028,118720.0,118710.0,0.33094]
[1752418896830,1.33799878,118720.0,118710.0,0.26444]
[1752418897249,1.33799878,118720.0,118710.0,0.294327]
[1752418897688,1.34066878,118720.0,118710.0,0.26444]
[1752418898152,1.40176878,118720.0,118710.0,0.26444]
[1752418898368,1.7286735,118720.0,118710.0,0.26444]
[1752418898580,1.42593465,118720.0,118710.0,0.26444]
[1752418899005,1.09262005,118720.0,118710.0,0.26444]
[1752418899221,1.09262005,118720.0,118710.0,0.26344]
[1752418899441,1.09262005,118720.0,118710.0,0.289884]
[1752418899665,1.01569461,118720.0,118710.0,0.289884]
[1752418899912,1.07879461,118720.0,118710.0,0.26344]
[1752418900123,1.42507059,118720.0,118710.0,0.26344]
[1752418900344,1.11483407,118720.0,118710.0,0.26344]
[1752418900628,1.112834,118720.0,118710.0,0.26344]
[1752418900828,1.11283393,118720.0,118710.0,0.26344]
[1752418901009,1.11683393,118720.0,118710.0,0.26344]
[1752418901463,1.11683393,118720.0,118710.0,0.289784]
[1752418901678,1.11683393,118720.0,118710.0,0.26344]
[1752418901904,1.10841139,118720.0,118710.0,0.26344]
[1752418902119,1.08379461,118720.0,118710.0,0.26344]
[1752418904045,1.09221722,118720.0,118710.0,0.26344]
[1752418904274,1.08379461,118720.0,118710.0,0.26344]
[1752418904706,1.09221715,118720.0,118710.0,0.26344]
[1752418904919,1.09221722,118720.0,118710.0,0.26344]
[1752418905131,1.09221722,118720.0,118710.0,0.289784]
[1752418905342,1.08379461,118720.0,118710.0,0.289784]
[1752418906854,1.11748029,118720.0,118710.0,0.289784]
[1752418907083,1.11748029,118720.0,118710.0,0.26344]
[1752418907521,1.11748022,118720.0,118710.0,0.26344]
[1752418907744,1.6801678,118720.0,118710.0,0.26344]
[1752418908864,0.59,118700.0,118690.0,0.20188]
[1752418909106,1.29790297,118700.0,118690.0,0.20188]
[1752418909322,1.29790297,118700.0,118690.0,0.225188]
[1752418909534,1.30054297,118700.0,118690.0,0.225188]
[1752418909753,1.07580797,118700.0,118690.0,0.225188]
[1752418909968,1.07580797,118700.0,118690.0,0.488468]
[1752418911077,1.12634797,118700.0,118690.0,0.488468]
[1752418911733,1.12370797,118700.0,118690.0,0.488468]
[1752418912420,1.37370797,118700.0,118690.0,0.488468]
[1752418912635,1.01093145,118700.0,118690.0,0.554968]
[1752418912859,0.98566645,118700.0,118690.0,0.554968]
[1752418913332,1.0002073,118700.0,118690.0,0.554968]
[1752418913758,1.0002073,118700.0,118690.0,0.555968]
[1752418920165,1.4002073,118700.0,118690.0,0.555968]
[1752418921015,1.40765823,118700.0,118690.0,0.555968]
[1752418922523,0.74,118700.0,118690.0,0.555968]
[1752418922733,0.65,118700.0,118690.0,0.555968]
[1752418922947,0.56768745,118700.0,118690.0,0.555968]
[1752418923414,0.31768745,118700.0,118690.0,0.555968]
[1752418923638,0.65768745,118700.0,118690.0,0.555968]
[1752418925583,0.34,118700.0,118690.0,0.555968]
[1752418925794,0.65768745,118700.0,118690.0,0.555968]
[1752418927307,0.74509738,118700.0,118690.0,0.555968]
[1752418927524,1.06278483,118700.0,118690.0,0.52736]
[1752418927738,1.07732568,118700.0,118690.0,0.46616]
[1752418928158,1.07732568,118700.0,118690.0,0.516182]
[1752418928845,1.07999568,118700.0,118690.0,0.46616]
[1752418929913,1.13053568,118700.0,118690.0,0.46616]
[1752418930149,1.16303568,118700.0,118690.0,0.46616]
[1752418930359,1.13053568,118700.0,118690.0,0.46616]
[1752418931052,1.15515501,118700.0,118690.0,0.46616]
[1752418932179,1.15248501,118700.0,118690.0,0.515886]
[1752418933251,1.15248501,118700.0,118690.0,0.46616]
[1752418935405,0.83479756,118700.0,118690.0,0.46616]
[1752418935609,1.15248501,118700.0,118690.0,0.46616]
[1752418937317,1.15515501,118700.0,118690.0,0.46616]
[1752418938528,1.15515501,118700.0,118690.0,0.20288]
[1752418938741,1.61565501,118700.0,118690.0,0.33436]
[1752418939354,1.21565501,118700.0,118690.0,0.33436]
[1752418940184,1.24067922,118700.0,118690.0,0.33436]
[1752418942190,1.21067922,118700.0,118690.0,0.367796]
[1752418943073,1.21067922,118700.0,118690.0,0.33436]
[1752418945309,1.21910325,118700.0,118690.0,0.33436]
[1752418945542,1.21067922,118700.0,118690.0,0.33436]
[1752418947118,1.24157922,118700.0,118690.0,0.33436]
[1752418947544,1.21067922,118700.0,118690.0,0.33436]
[1752418948156,1.24157922,118700.0,118690.0,0.33436]
[1752418948936,1.21067922,118700.0,118690.0,0.33436]
[1752418949845,1.21910325,118700.0,118690.0,0.33436]
[1752418950275,1.21067922,118700.0,118690.0,0.33436]
[1752418950507,1.18017922,118700.0,118690.0,0.33436]
[1752418950730,1.19507897,118700.0,118690.0,0.33436]
[1752418950942,1.16357897,118700.0,118690.0,0.367796]
[1752418951156,1.15515501,118700.0,118690.0,0.367796]
[1752418951372,1.15515501,118700.0,118690.0,0.33436]
[1752418954298,0.34,118700.0,118690.0,0.40231]
[1752418954522,0.25,118710.0,118700.0,0.0627]
[1752418954732,0.31768745,118710.0,118700.0,0.13207277]
[1752418954951,0.31768745,118710.0,118700.0,0.18180605]
[1752418955181,0.65768745,118710.0,118700.0,0.18180605]
[1752418955430,0.01088722,118720.0,118710.0,0.0627]
[1752418955664,0.35088722,118720.0,118710.0,0.32972597]
[1752418955895,0.35088722,118720.0,118710.0,0.33071]
[1752418956103,0.35088722,118720.0,118710.0,0.3837096]
[1752418956308,0.01088722,118720.0,118710.0,0.3837096]
[1752418956722,0.66857467,118720.0,118710.0,0.3837096]
[1752418957149,0.66857467,118720.0,118710.0,0.3847096]
[1752418957360,0.98626212,118720.0,118710.0,0.33471]
[1752418957775,0.66857467,118720.0,118710.0,0.33471]
[1752418959486,0.98626212,118720.0,118710.0,0.33471]
[1752418959692,1.23626212,118720.0,118710.0,0.33471]
[1752418961277,0.66857467,118720.0,118710.0,0.33471]
[1752418961479,0.66857467,118720.0,118710.0,0.37284533]
[1752418962936,0.35088722,118720.0,118710.0,0.37284533]
[1752418963145,0.66857467,118720.0,118710.0,0.37284533]
[1752418965469,0.98626212,118720.0,118710.0,0.37284533]
[1752418965728,0.35088722,118720.0,118710.0,0.37284533]
[1752418965973,0.98626212,118720.0,118710.0,0.37284533]
[1752418968497,0.35088722,118720.0,118710.0,0.37284533]
[1752418968707,0.66857467,118720.0,118710.0,0.37284533]
[1752418970722,0.98626212,118720.0,118710.0,0.37284533]
[1752418974464,0.66857467,118720.0,118710.0,0.37284533]
[1752418982280,0.66857467,118720.0,118710.0,0.57468533]
[1752418987910,0.35088722,118720.0,118710.0,0.57468533]
[1752418988117,0.66857467,118720.0,118710.0,0.57468533]
[1752418989209,0.35088722,118720.0,118710.0,0.57468533]
[1752418989640,0.66857467,118720.0,118710.0,0.66011526]
[1752418994984,0.35088722,118720.0,118710.0,0.66011526]
[1752418995185,0.66857467,118720.0,118710.0,0.66011526]
[1752419006437,0.66857467,118720.0,118710.0,0.53346]
[1752419006438,0.98822212,118720.0,118710.0,0.53346]
[1752419006625,1.27189212,118720.0,118710.0,0.20584]
[1752419006847,1.30359212,118720.0,118710.0,0.33684]
[1752419007668,1.4035629,118720.0,118710.0,0.33684]
[1752419008070,1.8035629,118720.0,118710.0,0.3338]
[1752419008656,1.8035629,118720.0,118710.0,0.3328]
[1752419008881,1.4035629,118720.0,118710.0,0.3328]
[1752419009101,1.42978462,118720.0,118710.0,0.36608]
[1752419009557,1.43078462,118720.0,118710.0,0.36608]
[1752419009785,1.42978462,118720.0,118710.0,0.36608]
[1752419010480,1.43178462,118720.0,118710.0,0.36608]
[1752419012601,1.07665205,118720.0,118710.0,0.36608]
[1752419012816,0.90122212,118720.0,118710.0,0.36608]
[1752419013034,0.90122212,118720.0,118710.0,0.42918]
[1752419013259,0.33353467,118720.0,118710.0,0.43426]
[1752419013470,0.65122212,118720.0,118710.0,0.43426]
[1752419013684,0.67353467,118720.0,118710.0,0.43426]
[1752419013921,0.67157467,118720.0,118710.0,0.43426]
[1752419014581,0.35388722,118720.0,118710.0,0.43426]
[1752419014786,0.33157467,118720.0,118710.0,0.43426]
[1752419015886,0.67157467,118720.0,118710.0,0.43426]
[1752419016113,0.01388722,118720.0,118710.0,0.83737738]
[1752419016330,0.0033678,118720.0,118710.0,0.51968993]
[1752419016554,0.0033678,118720.0,118710.0,0.5869027]
[1752419016768,0.0013678,118720.0,118710.0,0.5869027]
[1752419017906,0.0003678,118720.0,118710.0,0.5869027]
[1752419018134,0.0003678,118720.0,118710.0,0.5889027]
[1752419019004,0.0003678,118720.0,118710.0,0.52168993]
[1752419020994,0.31805525,118720.0,118710.0,0.54650529]
[1752419021202,0.0003678,118720.0,118710.0,0.54650529]
[1752419025506,0.0003678,118720.0,118710.0,0.84320529]
[1752419026365,0.31805525,118720.0,118710.0,0.84320529]
[1752419026930,0.0003678,118720.0,118710.0,0.84320529]
[1752419036334,0.31805525,118720.0,118710.0,0.84320529]
[1752419036751,0.32003525,118720.0,118710.0,0.84320529]
[1752419037167,0.31805525,118720.0,118710.0,0.84320529]
[1752419038260,0.0003678,118720.0,118710.0,0.84320529]
[1752419038493,0.31805525,118720.0,118710.0,0.84320529]
[1752419040334,0.31805525,118720.0,118710.0,0.54650529]
[1752419040541,0.32003525,118720.0,118710.0,0.54650529]
[1752419040970,0.6403927,118720.0,118710.0,0.3348]
[1752419041390,0.32003525,118720.0,118710.0,0.3348]
[1752419041605,0.0023478,118720.0,118710.0,0.3348]
[1752419041829,0.32003525,118720.0,118710.0,0.3348]
[1752419042030,0.6719927,118720.0,118710.0,0.3348]
[1752419042259,1.0432927,118720.0,118710.0,0.411945]
[1752419042899,0.4079178,118720.0,118710.0,0.411945]
[1752419043130,1.0432927,118720.0,118710.0,0.411945]
[1752419045463,1.0432927,118720.0,118710.0,0.3348]
[1752419047892,0.72560525,118720.0,118710.0,0.2018]
[1752419048982,0.72560525,118720.0,118710.0,0.33248]
[1752419049205,1.0432927,118720.0,118710.0,0.33248]
[1752419053910,1.39326348,118720.0,118710.0,0.33248]
[1752419054798,1.39426348,118720.0,118710.0,0.33248]
[1752419055445,1.79426348,118720.0,118710.0,0.33248]
[1752419055669,1.79326348,118720.0,118710.0,0.33248]
[1752419055886,1.79726348,118720.0,118710.0,0.33348]
[1752419056362,1.84780348,118720.0,118710.0,0.33348]
[1752419057227,1.84780348,118720.0,118710.0,0.366828]
[1752419057464,1.79726348,118720.0,118710.0,0.33348]
[1752419058112,1.78272263,118720.0,118710.0,0.33348]
[1752419058327,1.78572263,118720.0,118710.0,0.33348]
[1752419060498,1.80026348,118720.0,118710.0,0.33348]
[1752419060717,1.85075348,118720.0,118710.0,0.33348]
[1752419061168,1.45075348,118720.0,118710.0,0.33348]
[1752419065518,1.41915348,118720.0,118710.0,0.33348]
[1752419065721,1.44935348,118720.0,118710.0,0.33348]
[1752419066406,1.41915348,118720.0,118710.0,0.33348]
[1752419066853,1.44935348,118720.0,118710.0,0.33348]
[1752419068702,1.44935348,118720.0,118710.0,0.366828]
[1752419069132,1.44935348,118720.0,118710.0,0.33348]
[1752419076866,1.79230911,118720.0,118710.0,0.33348]
[1752419077765,1.80073214,118720.0,118710.0,0.33348]
[1752419077953,1.79230911,118720.0,118710.0,0.33348]
[1752419078225,1.80073207,118720.0,118710.0,0.33348]
[1752419078918,1.79230911,118720.0,118710.0,0.33348]
[1752419079387,1.80073214,118720.0,118710.0,0.33348]
[1752419079798,1.78388622,118720.0,118710.0,0.33348]
[1752419079996,1.79230911,118720.0,118710.0,0.33348]
[1752419080203,1.80073207,118720.0,118710.0,0.33348]
[1752419080408,1.80915517,118720.0,118710.0,0.33348]
[1752419080840,2.0456039,118720.0,118710.0,0.33348]
[1752419081050,0.70289,118700.0,118690.0,2.0]
[1752419081251,1.43409886,118700.0,118690.0,2.0]
[1752419081516,1.42833483,118700.0,118690.0,2.0]